[Event "RUS-ch Blitz Women 2018"]
[Site "Sochi"]
[Date "2018.10.07"]
[Round "7"]
[White "Kabanova, Ekaterina"]
[Black "Shafigullina, Zarina"]
[Result "1-0"]
[ECO "A20"]
[WhiteElo "2082"]
[BlackElo "2150"]
[Annotator "NA"]
[PlyCount "133"]
[EventDate "2018.10.07"]
[EventType "swiss"]
[EventCountry "RUS"]
[SourceTitle "playchess.com"]
[Source "ChessBase"]
[SourceQuality "1"]
[TimeControl "180+2"]

1. c4 {[%emt 0:00:00]} e5 {[%emt 0:00:00]} 2. e3 {[%emt 0:00:00]} d5 {[%emt 0:00:03]} 3. cxd5 {[%emt 0:00:01]} Qxd5 {[%emt 0:00:01]} 4. Qc2 {[%emt 0:00:04]} c6 {[%emt 0:00:05]} 5. a3 {[%emt 0:00:15]} Nf6 {[%emt 0:00:02]} 6. Nc3 {[%emt 0:00:03]} Qd8 {[%emt 0:00:01]} 7. d3 {[%emt 0:00:03]} Be7 {[%emt 0:00:06]} 8. Nf3 {[%emt 0:00:01]} Qd6 {[%emt 0:00:08]} 9. Be2 {[%emt 0:00:07]} O-O {[%emt 0:00:03]} 10. O-O {[%emt 0:00:02]} Bf5 {[%emt 0:00:04]} 11. b4 {[%emt 0:00:07]} Nbd7 {[%emt 0:00:04]} 12. Bb2 {[%emt 0:00:01]} Rfe8 {[%emt 0:00:15]} 13. Rfd1 {[%emt 0:00:04]} Bd8 {[%emt 0:00:02]} 14. Ne4 {[%emt 0:00:03]} Qc7 {[%emt 0:00:17]} 15. Rac1 {[%emt 0:00:12]} Rc8 {[%emt 0:00:01]} 16. Ng3 {[%emt 0:00:10]} Be6 {[%emt 0:00:24]} 17. Nd2 {[%emt 0:00:07]} Nb6 {[%emt 0:00:21]} 18. Nc4 {[%emt 0:00:08]} Bd5 {[%emt 0:00:39]} 19. Nd2 {[%emt 0:00:11]} Be7 {[%emt 0:00:13]} 20. Nf5 {[%emt 0:00:06]} Bf8 {[%emt 0:00:02]} 21. Ne4 {[%emt 0:00:11]} Nxe4 {[%emt 0:00:10]} 22. dxe4 {[%emt 0:00:02]} Be6 {[%emt 0:00:01]} 23. Rd2 {[%emt 0:00:03]} g6 {[%emt 0:00:01]} 24. Ng3 {[%emt 0:00:02]} Rcd8 {[%emt 0:00:13]} 25. Rcd1 {[%emt 0:00:04]} Bg7 {[%emt 0:00:01]} 26. h3 {[%emt 0:00:19]} h5 {[%emt 0:00:02]} 27. Nf1 {[%emt 0:00:02]} Qe7 {[%emt 0:00:06]} 28. Nh2 {[%emt 0:00:01]} Rxd2 {[%emt 0:00:15]} 29. Qxd2 {[%emt 0:00:03]} Qh4 {[%emt 0:00:03]} 30. Nf3 {[%emt 0:00:03]} Qxe4 {[%emt 0:00:11]} 31. Ng5 {[%emt 0:00:13]} Qd5 {[%emt 0:00:00]} 32. Nxe6 {[%emt 0:00:03]} Qxd2 {[%emt 0:00:03]} 33. Rxd2 {[%emt 0:00:01]} Rxe6 {[%emt 0:00:03]} 34. Rd8+ {[%emt 0:00:02]} Kh7 {[%emt 0:00:01]} 35. e4 {[%emt 0:00:13]} Re7 {[%emt 0:00:03]} 36. Bc3 {[%emt 0:00:09]} Rd7 {[%emt 0:00:02]} 37. Rb8 {[%emt 0:00:06]} Na4 {[%emt 0:00:02]} 38. Be1 {[%emt 0:00:02]} Nb2 {[%emt 0:00:02]} 39. Kf1 {[%emt 0:00:06]} Bf6 {[%emt 0:00:03]} 40. g3 {[%emt 0:00:03]} Kg7 {[%emt 0:00:02]} 41. f4 {[%emt 0:00:03]} exf4 {[%emt 0:00:01]} 42. gxf4 {[%emt 0:00:01]} Bd4 {[%emt 0:00:03]} 43. Kg2 {[%emt 0:00:02]} b6 {[%emt 0:00:02]} 44. Kf3 {[%emt 0:00:01]} c5 {[%emt 0:00:01]} 45. bxc5 {[%emt 0:00:01]} Bxc5 {[%emt 0:00:01]} 46. Bc3+ {[%emt 0:00:01]} Bd4 {[%emt 0:00:01]} 47. Bb4 {[%emt 0:00:01]} Na4 {[%emt 0:00:04]} 48. e5 {[%emt 0:00:03]} Bc5 {[%emt 0:00:02]} 49. Be1 {[%emt 0:00:01]} Nb2 {[%emt 0:00:03]} 50. Bb5 {[%emt 0:00:09]} Rd1 {[%emt 0:00:03]} 51. Bc3 {[%emt 0:00:02]} Bd4 {[%emt 0:00:01]} 52. Bb4 {[%emt 0:00:01]} Bc5 {[%emt 0:00:02]} 53. Bc3 {[%emt 0:00:05]} Bd4 {[%emt 0:00:01]} 54. Bb4 {[%emt 0:00:05]} Bc5 {[%emt 0:00:01]} 55. Be2 {[%emt 0:00:01]} Rc1 {[%emt 0:00:02]} 56. Bxc5 {[%emt 0:00:04]} Rxc5 {[%emt 0:00:02]} 57. Rb7 {[%emt 0:00:01]} Ra5 {[%emt 0:00:01]} 58. e6 {[%emt 0:00:02]} Rxa3+ {[%emt 0:00:02]} 59. Kf2 {[%emt 0:00:05]} Nd3+ {[%emt 0:00:04]} 60. Bxd3 {[%emt 0:00:17]} Rxd3 {[%emt 0:00:01]} 61. Rxf7+ {[%emt 0:00:01]} Kg8 {[%emt 0:00:01]} 62. Rxa7 {[%emt 0:00:03]} Rd4 {[%emt 0:00:04]} 63. Kf3 {[%emt 0:00:00]} Kf8 {[%emt 0:00:02]} 64. Ke3 {[%emt 0:00:02]} Rd1 {[%emt 0:00:02]} 65. Ke4 {[%emt 0:00:00]} b5 {[%emt 0:00:02]} 66. Ke5 {[%emt 0:00:01]} b4 {[%emt 0:00:00]} 67. Kf6 {[%emt 0:00:01]} 1-0

[Event "RUS-ch Blitz Women 2018"]
[Site "Sochi"]
[Date "2018.10.07"]
[Round "8"]
[White "Charochkina, Daria"]
[Black "Voit, Daria"]
[Result "1-0"]
[ECO "E36"]
[WhiteElo "2344"]
[BlackElo "2352"]
[Annotator "NA"]
[PlyCount "87"]
[EventDate "2018.10.07"]
[EventType "swiss"]
[EventCountry "RUS"]
[SourceTitle "playchess.com"]
[Source "ChessBase"]
[SourceQuality "1"]
[TimeControl "180+2"]

1. d4 {[%emt 0:00:00]} Nf6 {[%emt 0:00:00]} 2. c4 {[%emt 0:00:00]} e6 {[%emt 0:00:00]} 3. Nc3 {[%emt 0:00:00]} Bb4 4. Qc2 d5 {[%emt 0:00:01]} 5. a3 {[%emt 0:00:03]} Bxc3+ {[%emt 0:00:02]} 6. Qxc3 {[%emt 0:00:00]} b6 {[%emt 0:00:02]} 7. g3 {[%emt 0:00:15]} Bb7 {[%emt 0:00:14]} 8. Bg2 {[%emt 0:00:01]} h6 {[%emt 0:00:03]} 9. Nf3 {[%emt 0:00:04]} Nbd7 {[%emt 0:00:07]} 10. O-O {[%emt 0:00:08]} c5 {[%emt 0:00:02]} 11. dxc5 {[%emt 0:00:10]} Nxc5 {[%emt 0:00:01]} 12. cxd5 {[%emt 0:00:40]} Bxd5 {[%emt 0:00:02]} 13. Bf4 {[%emt 0:00:17]} O-O {[%emt 0:00:06]} 14. Rfd1 {[%emt 0:00:01]} Rc8 {[%emt 0:00:07]} 15. Qe1 {[%emt 0:00:18]} Nb3 {[%emt 0:00:17]} 16. Rab1 {[%emt 0:00:00]} Qe7 {[%emt 0:00:01]} 17. Nd2 {[%emt 0:00:15]} Bxg2 18. Kxg2 {[%emt 0:00:01]} Nd4 {[%emt 0:00:56]} 19. Nf3 {[%emt 0:00:08]} Nxf3 {[%emt 0:00:04]} 20. exf3 {[%emt 0:00:02]} Rfd8 {[%emt 0:00:29]} 21. Rbc1 {[%emt 0:00:06]} Qb7 {[%emt 0:00:04]} 22. Be5 {[%emt 0:00:05]} Nd5 {[%emt 0:00:20]} 23. Qe4 {[%emt 0:00:16]} Qe7 {[%emt 0:00:34]} 24. h4 {[%emt 0:00:08]} f6 {[%emt 0:00:07]} 25. Bd4 {[%emt 0:00:06]} Rxc1 {[%emt 0:00:01]} 26. Rxc1 {[%emt 0:00:01]} e5 {[%emt 0:00:01]} 27. Bc3 {[%emt 0:00:14]} Nxc3 {[%emt 0:00:01]} 28. Rxc3 {[%emt 0:00:01]} Qd7 {[%emt 0:00:06]} 29. Rc6 {[%emt 0:00:07]} Qd5 {[%emt 0:00:02]} 30. Qc2 {[%emt 0:00:03]} Qd4 {[%emt 0:00:03]} 31. Rc7 {[%emt 0:00:06]} Rd7 {[%emt 0:00:03]} 32. Rc8+ {[%emt 0:00:12]} Kf7 {[%emt 0:00:01]} 33. Rc3 {[%emt 0:00:05]} Qd5 {[%emt 0:00:02]} 34. h5 {[%emt 0:00:02]} Qe6 {[%emt 0:00:04]} 35. Rc8 {[%emt 0:00:03]} f5 {[%emt 0:00:01]} 36. Qc3 {[%emt 0:00:04]} e4 {[%emt 0:00:01]} 37. fxe4 {[%emt 0:00:05]} Qxe4+ {[%emt 0:00:01]} 38. Kh2 {[%emt 0:00:02]} Qe6 {[%emt 0:00:02]} 39. Qc2 {[%emt 0:00:01]} Qe5 {[%emt 0:00:02]} 40. Qc4+ {[%emt 0:00:01]} Qe6 {[%emt 0:00:01]} 41. Qc2 {[%emt 0:00:01]} Qe5 {[%emt 0:00:01]} 42. Qc4+ {[%emt 0:00:01]} Qe6 {[%emt 0:00:01]} 43. Rf8+ {[%emt 0:00:01]} Ke7 {[%emt 0:00:05]} 44. Re8+ {[%emt 0:00:01]} 1-0

[Event "RUS-ch Blitz Women 2018"]
[Site "Sochi"]
[Date "2018.10.07"]
[Round "8"]
[White "Dordzhieva, Dinara"]
[Black "Bodnaruk, Anastasia"]
[Result "1-0"]
[ECO "E63"]
[WhiteElo "2340"]
[BlackElo "2423"]
[Annotator "NA"]
[PlyCount "113"]
[EventDate "2018.10.07"]
[EventType "swiss"]
[EventCountry "RUS"]
[SourceTitle "playchess.com"]
[Source "ChessBase"]
[SourceQuality "1"]
[TimeControl "180+2"]

1. Nf3 {[%emt 0:01:20]} Nf6 2. c4 g6 3. g3 Bg7 {[%emt 0:00:01]} 4. Bg2 {[%emt 0:00:01]} O-O 5. d4 d6 {[%emt 0:00:02]} 6. Nc3 {[%emt 0:00:02]} Nc6 {[%emt 0:00:00]} 7. O-O {[%emt 0:00:02]} a6 {[%emt 0:00:01]} 8. d5 {[%emt 0:00:09]} Na5 {[%emt 0:00:02]} 9. Nd2 {[%emt 0:00:01]} c5 {[%emt 0:00:02] LiveBook: 839 Games} 10. Qc2 {[%emt 0:00:01]} Rb8 {[%emt 0:00:04]} 11. a4 {[%emt 0:00:01]} Bf5 {[%emt 0:00:10] E66: King's Indian: Fianchetto: 6...c5 7 0-0 Nc6 8 d5} (11... e6 12. b3 exd5 13. cxd5 Ng4 14. h3 Nh6 15. Bb2 f5 16. e3 Nf7 17. Ne2 Bxb2 18. Qxb2 Ne5 19. Qc3 {1-0 (53) Korobov,A (2713)-Ding,L (2711) Antalya 2013 CBM 158 [Krasenkow,M]}) 12. e4 {[%emt 0:00:01]} Bd7 {[%emt 0:00:01]} 13. b3 {[%emt 0:00:01]} e5 {[%emt 0:00:05]} 14. Bb2 {[%emt 0:00:17]} Ne8 $146 {[%emt 0:00:10]} ({Predecessor:} 14... Bh6 15. Ra3 Nh5 16. Ne2 b6 17. Kh1 Qc8 18. Nf3 f5 19. exf5 Bxf5 {1-0 (40) Sabuk,P (2333)-Weichhold,P (2415) Jastrzebia Gora 2015}) 15. f4 {[%emt 0:00:02]} f5 {[%emt 0:00:10]} 16. fxe5 {[%emt 0:00:15]} dxe5 {[%emt 0:00:01]} 17. exf5 {[%emt 0:00:10]} gxf5 {[%emt 0:00:01]} 18. Rae1 {[%emt 0:00:01]} Nd6 {[%emt 0:00:18]} 19. Nd1 $2 {[%emt 0:00:02]} Nf7 $2 {[%emt 0:00:18]} (19... Qe7 $11) 20. Ne3 {[%emt 0:00:04]} Nd6 {[%emt 0:00:06]} 21. Nd1 $11 (21. Bh3 $18) 21... Nf7 22. Ne3 {[%emt 0:00:17]} Nd6 {[%emt 0:00:01]} 23. Kh1 {[%emt 0:00:02]} Rc8 {[%emt 0:00:11]} 24. Nd1 {[%emt 0:00:03]} Nf7 {[%emt 0:00:01]} 25. Nf3 {[%emt 0:00:01]} Qc7 {[%emt 0:00:25]} 26. Nh4 {[%emt 0:00:07]} Nh6 {[%emt 0:00:01]} 27. Bc3 {[%emt 0:00:12]} b5 {[%emt 0:00:02]} 28. d6 {[%emt 0:00:02]} Qb6 {[%emt 0:00:15]} 29. Bxe5 {[%emt 0:00:03]} Bxe5 {[%emt 0:00:03]} 30. Rxe5 {[%emt 0:00:01]} bxc4 {[%emt 0:00:02]} 31. bxc4 {[%emt 0:00:03]} Qxd6 {[%emt 0:00:06]} 32. Qc3 {[%emt 0:00:04]} Nc6 {[%emt 0:00:04]} 33. Bd5+ {[%emt 0:00:01]} Nf7 {[%emt 0:00:07]} 34. Ree1 {[%emt 0:00:01]} Nd4 {[%emt 0:00:04]} 35. Ne3 {[%emt 0:00:06]} Rce8 {[%emt 0:00:07]} 36. Nexf5 {[%emt 0:00:05]} Rxe1 {[%emt 0:00:13]} 37. Qxe1 {[%emt 0:00:01]} Bxf5 {[%emt 0:00:07]} 38. Nxf5 {[%emt 0:00:02]} Nxf5 {[%emt 0:00:06]} 39. Rxf5 {[%emt 0:00:02]} Kg7 {[%emt 0:00:05]} 40. Qc3+ {[%emt 0:00:01]} Kg6 {[%emt 0:00:05]} 41. Qd3 {[%emt 0:00:06]} Kg7 {[%emt 0:00:02]} 42. Qe3 Nh6 {[%emt 0:00:13]} 43. Qg5+ {[%emt 0:00:21]} Qg6 {[%emt 0:00:04]} 44. Qe7+ {[%emt 0:00:03]} Rf7 {[%emt 0:00:02]} 45. Rxf7+ {[%emt 0:00:05]} Nxf7 {[%emt 0:00:01]} 46. Qxf7+ {[%emt 0:00:02]} Qxf7 {[%emt 0:00:02]} 47. Bxf7 {[%emt 0:00:00]} Kxf7 {[%emt 0:00:01]} 48. Kg2 {[%emt 0:00:01]} Ke6 {[%emt 0:00:05]} 49. Kf3 {[%emt 0:00:01]} Ke5 {[%emt 0:00:00]} 50. Ke3 {[%emt 0:00:00]} h5 {[%emt 0:00:01]} 51. h3 {[%emt 0:00:03]} Kf5 {[%emt 0:00:00]} 52. a5 {[%emt 0:00:03]} Ke5 {[%emt 0:00:03]} 53. g4 {[%emt 0:00:02]} h4 {[%emt 0:00:00]} 54. Kf3 {[%emt 0:00:03]} Kd4 {[%emt 0:00:03]} 55. g5 {[%emt 0:00:01]} Kxc4 56. g6 Kd3 {[%emt 0:00:04]} 57. g7 {[%emt 0:00:01] Ke4+ Kxe4} 1-0

[Event "RUS-ch Blitz Women 2018"]
[Site "Sochi"]
[Date "2018.10.07"]
[Round "8"]
[White "Protopopova, Anastasiya"]
[Black "Tomilova, Elena"]
[Result "0-1"]
[ECO "D11"]
[WhiteElo "2308"]
[BlackElo "2328"]
[Annotator "NA"]
[PlyCount "89"]
[EventDate "2018.10.07"]
[EventType "swiss"]
[EventCountry "RUS"]
[SourceTitle "playchess.com"]
[Source "ChessBase"]
[SourceQuality "1"]
[TimeControl "180+2"]

1. d4 {[%emt 0:00:00]} d5 {[%emt 0:00:00]} 2. Nf3 {[%emt 0:00:01]} Nf6 {[%emt 0:00:00]} 3. c4 {[%emt 0:00:01]} c6 {[%emt 0:00:00]} 4. e3 {[%emt 0:00:04]} e6 {[%emt 0:00:01]} 5. b3 {[%emt 0:00:05]} Nbd7 {[%emt 0:00:02]} 6. Nbd2 {[%emt 0:00:04]} Bd6 {[%emt 0:00:03]} 7. Bb2 {[%emt 0:00:03]} O-O {[%emt 0:00:03]} 8. Bd3 {[%emt 0:00:06]} b6 {[%emt 0:00:03]} 9. O-O {[%emt 0:00:04]} Bb7 {[%emt 0:00:02]} 10. Ne5 {[%emt 0:00:05]} Rc8 {[%emt 0:00:09]} 11. f4 {[%emt 0:00:02]} c5 {[%emt 0:00:06]} 12. cxd5 {[%emt 0:00:04]} Nxd5 {[%emt 0:00:09]} 13. Qe2 {[%emt 0:00:21]} cxd4 {[%emt 0:00:21]} 14. exd4 {[%emt 0:00:03]} g6 {[%emt 0:00:13]} 15. Ne4 {[%emt 0:00:11]} N7f6 {[%emt 0:00:04]} 16. Nxd6 {[%emt 0:00:12]} Qxd6 {[%emt 0:00:01]} 17. Bc4 {[%emt 0:00:29]} Rc7 {[%emt 0:00:08]} 18. Rad1 {[%emt 0:00:04]} Rfc8 {[%emt 0:00:06]} 19. Rd2 {[%emt 0:00:11]} Qb4 {[%emt 0:00:31]} 20. a3 {[%emt 0:00:54]} Qd6 {[%emt 0:00:02]} 21. h3 {[%emt 0:00:15]} Ne7 {[%emt 0:00:05]} 22. Kh2 {[%emt 0:00:11]} Nf5 {[%emt 0:00:17]} 23. Rfd1 {[%emt 0:00:10]} Ne4 {[%emt 0:00:06]} 24. Rd3 {[%emt 0:00:02]} Nf6 {[%emt 0:00:04]} 25. R3d2 {[%emt 0:00:03]} a5 {[%emt 0:00:03]} 26. g4 {[%emt 0:00:04]} Ne7 {[%emt 0:00:03]} 27. Rf1 Ned5 {[%emt 0:00:14]} 28. f5 {[%emt 0:00:04]} exf5 {[%emt 0:00:05]} 29. gxf5 {[%emt 0:00:01]} Nh5 {[%emt 0:00:12]} 30. Qg4 {[%emt 0:00:02]} Ndf6 {[%emt 0:00:03]} 31. Qg5 {[%emt 0:00:02]} Bd5 {[%emt 0:00:07]} 32. Re2 {[%emt 0:00:03]} b5 {[%emt 0:00:08]} 33. Bxd5 {[%emt 0:00:01]} Qxd5 {[%emt 0:00:02]} 34. fxg6 {[%emt 0:00:02]} hxg6 {[%emt 0:00:03]} 35. Rxf6 {[%emt 0:00:02]} Nxf6 {[%emt 0:00:02]} 36. Qxf6 {[%emt 0:00:00]} Rc2 {[%emt 0:00:01]} 37. Qf2 {[%emt 0:00:04]} Rxe2 {[%emt 0:00:04]} 38. Qxe2 {[%emt 0:00:00]} Qxb3 {[%emt 0:00:01]} 39. Qf1 {[%emt 0:00:05]} Qxb2+ {[%emt 0:00:02]} 40. Kg3 {[%emt 0:00:00]} Qb3+ {[%emt 0:00:03]} 41. Kg4 {[%emt 0:00:01]} Qe6+ {[%emt 0:00:04]} 42. Kh4 {[%emt 0:00:03]} b4 {[%emt 0:00:02]} 43. axb4 {[%emt 0:00:02]} axb4 {[%emt 0:00:04]} 44. Qd3 {[%emt 0:00:07]} Rc3 45. Qf1 0-1

[Event "RUS-ch Blitz Women 2018"]
[Site "Sochi"]
[Date "2018.10.07"]
[Round "8"]
[White "Guseva, Marina"]
[Black "Ivanova, Karina"]
[Result "1-0"]
[ECO "E21"]
[WhiteElo "2292"]
[BlackElo "2124"]
[Annotator "NA"]
[PlyCount "81"]
[EventDate "2018.10.07"]
[EventType "swiss"]
[EventCountry "RUS"]
[SourceTitle "playchess.com"]
[Source "ChessBase"]
[SourceQuality "1"]
[TimeControl "180+2"]

1. d4 {[%emt 0:00:00]} Nf6 {[%emt 0:00:00]} 2. c4 {[%emt 0:00:00]} e6 {[%emt 0:00:00]} 3. Nc3 {[%emt 0:00:01]} Bb4 {[%emt 0:00:03]} 4. Nf3 {[%emt 0:00:01]} c5 {[%emt 0:00:03]} 5. g3 {[%emt 0:00:02]} b6 {[%emt 0:00:01]} 6. Bg2 {[%emt 0:00:10]} Bb7 {[%emt 0:00:02]} 7. dxc5 {[%emt 0:00:06]} Bxc5 {[%emt 0:00:04]} 8. O-O {[%emt 0:00:04]} O-O {[%emt 0:00:03]} 9. a3 {[%emt 0:00:21]} Be7 {[%emt 0:00:05]} 10. b3 {[%emt 0:00:07]} Ne4 {[%emt 0:00:31]} 11. Bb2 {[%emt 0:00:08]} Na6 {[%emt 0:00:22]} 12. Nxe4 {[%emt 0:00:09]} Bxe4 {[%emt 0:00:03]} 13. Rc1 {[%emt 0:00:18]} d5 {[%emt 0:00:19]} 14. Ne5 {[%emt 0:00:52]} Bxg2 {[%emt 0:00:13]} 15. Kxg2 {[%emt 0:00:01]} Nc7 {[%emt 0:00:28]} 16. Nc6 {[%emt 0:00:21]} Qe8 {[%emt 0:00:03]} 17. Nxe7+ {[%emt 0:00:03]} Qxe7 {[%emt 0:00:02]} 18. cxd5 {[%emt 0:00:11]} Nxd5 {[%emt 0:00:02]} 19. e4 {[%emt 0:00:01]} Nf6 {[%emt 0:00:08]} 20. Qf3 {[%emt 0:00:07]} Rac8 {[%emt 0:00:09]} 21. b4 {[%emt 0:00:09]} b5 {[%emt 0:00:14]} 22. Rfd1 {[%emt 0:00:04]} a6 {[%emt 0:00:05]} 23. Bxf6 {[%emt 0:00:14]} Qxf6 {[%emt 0:00:19]} 24. Qxf6 {[%emt 0:00:02]} gxf6 {[%emt 0:00:01]} 25. Rxc8 {[%emt 0:00:01]} Rxc8 {[%emt 0:00:01]} 26. Rd6 {[%emt 0:00:01]} Ra8 {[%emt 0:00:01]} 27. Rb6 {[%emt 0:00:03]} Kf8 {[%emt 0:00:15]} 28. h4 {[%emt 0:00:02]} h5 {[%emt 0:00:03]} 29. Kh3 {[%emt 0:00:04]} Kg7 {[%emt 0:00:02]} 30. f3 {[%emt 0:00:03]} f5 {[%emt 0:00:05]} 31. exf5 {[%emt 0:00:01]} exf5 {[%emt 0:00:00]} 32. Kg2 {[%emt 0:00:05]} Ra7 {[%emt 0:00:06]} 33. Kf2 {[%emt 0:00:01]} f6 {[%emt 0:00:05]} 34. Ke3 {[%emt 0:00:02]} Kg6 {[%emt 0:00:03]} 35. Kf4 {[%emt 0:00:01]} Ra8 {[%emt 0:00:01]} 36. Rc6 {[%emt 0:00:02]} Ra7 {[%emt 0:00:01]} 37. Rc5 {[%emt 0:00:01]} Rd7 {[%emt 0:00:02]} 38. Ke3 {[%emt 0:00:05]} Rd1 {[%emt 0:00:03]} 39. Rc6 {[%emt 0:00:01]} Rg1 {[%emt 0:00:02]} 40. Kf4 {[%emt 0:00:03]} Rc1 {[%emt 0:00:02]} 41. Rxc1 {[%emt 0:00:02]} 1-0

[Event "RUS-ch Blitz Women 2018"]
[Site "Sochi"]
[Date "2018.10.07"]
[Round "8"]
[White "Maletina, Tatiana"]
[Black "Vinokur, Yuliya"]
[Result "1/2-1/2"]
[ECO "A57"]
[WhiteElo "2270"]
[BlackElo "2170"]
[Annotator "NA"]
[PlyCount "69"]
[EventDate "2018.10.07"]
[EventType "swiss"]
[EventCountry "RUS"]
[SourceTitle "playchess.com"]
[Source "ChessBase"]
[SourceQuality "1"]
[TimeControl "180+2"]

1. d4 {[%emt 0:00:00]} Nf6 {[%emt 0:00:01]} 2. c4 {[%emt 0:00:00]} c5 {[%emt 0:00:01]} 3. d5 {[%emt 0:00:01]} b5 {[%emt 0:00:02]} 4. Qc2 {[%emt 0:00:01]} bxc4 {[%emt 0:00:02]} 5. e4 {[%emt 0:00:00]} d6 {[%emt 0:00:01]} 6. Bxc4 {[%emt 0:00:02]} g6 {[%emt 0:00:01]} 7. Nc3 {[%emt 0:00:01]} Bg7 {[%emt 0:00:02]} 8. Nf3 {[%emt 0:00:01]} O-O {[%emt 0:00:02]} 9. O-O {[%emt 0:00:02]} Ba6 {[%emt 0:00:01]} 10. Nd2 {[%emt 0:00:05]} Qc8 {[%emt 0:00:06]} 11. b3 {[%emt 0:00:06]} Bxc4 {[%emt 0:00:06]} 12. bxc4 {[%emt 0:00:01]} Nbd7 {[%emt 0:00:10]} 13. f4 {[%emt 0:00:04]} Qa6 {[%emt 0:00:06]} 14. a4 {[%emt 0:00:10]} Qa5 {[%emt 0:00:23]} 15. Bb2 {[%emt 0:00:04]} Rab8 {[%emt 0:00:04]} 16. Nb5 {[%emt 0:00:17]} a6 {[%emt 0:00:16]} 17. Bc3 {[%emt 0:00:01]} Qb6 {[%emt 0:00:07]} 18. a5 {[%emt 0:00:12]} Qb7 {[%emt 0:00:07]} 19. Na3 {[%emt 0:00:01]} e6 {[%emt 0:00:31]} 20. Qd3 {[%emt 0:00:09]} exd5 {[%emt 0:00:02]} 21. cxd5 {[%emt 0:00:01]} Rfe8 {[%emt 0:00:07]} 22. Nac4 {[%emt 0:00:02]} Qc7 {[%emt 0:00:04]} 23. e5 {[%emt 0:00:18]} dxe5 {[%emt 0:00:23]} 24. fxe5 {[%emt 0:00:36]} Ng4 {[%emt 0:00:01]} 25. d6 {[%emt 0:00:12]} Qc6 {[%emt 0:00:16]} 26. Ne4 {[%emt 0:00:31]} Ngxe5 {[%emt 0:00:23]} 27. Nxe5 {[%emt 0:00:07]} Bxe5 {[%emt 0:00:02]} 28. Bxe5 {[%emt 0:00:04]} Rxe5 {[%emt 0:00:01]} 29. Rae1 {[%emt 0:00:11]} Rbe8 {[%emt 0:00:03]} 30. Qf3 {[%emt 0:00:24]} Rxe4 {[%emt 0:00:11]} 31. Qxf7+ {[%emt 0:00:01]} Kh8 {[%emt 0:00:00]} 32. Rxe4 {[%emt 0:00:01]} Rxe4 {[%emt 0:00:06]} 33. h3 {[%emt 0:00:11]} c4 {[%emt 0:00:01]} 34. Rb1 {[%emt 0:00:08]} Qxd6 {[%emt 0:00:08]} 35. Rb6 {[%emt 0:00:05]} 1/2-1/2

[Event "RUS-ch Blitz Women 2018"]
[Site "Sochi"]
[Date "2018.10.07"]
[Round "8"]
[White "Borisova, Ekaterina"]
[Black "Belenkaya, Dina"]
[Result "0-1"]
[ECO "D23"]
[WhiteElo "2256"]
[BlackElo "2329"]
[Annotator "NA"]
[PlyCount "88"]
[EventDate "2018.10.07"]
[EventType "swiss"]
[EventCountry "RUS"]
[SourceTitle "playchess.com"]
[Source "ChessBase"]
[SourceQuality "1"]
[TimeControl "180+2"]

1. d4 {[%emt 0:00:00]} d5 {[%emt 0:00:00]} 2. c4 {[%emt 0:00:00]} dxc4 {[%emt 0:00:00]} 3. Nf3 {[%emt 0:00:01]} Nf6 4. g3 c5 {[%emt 0:00:10]} 5. Bg2 {[%emt 0:00:06]} Nc6 {[%emt 0:00:04]} 6. Qa4 {[%emt 0:00:13]} cxd4 {[%emt 0:00:21]} 7. Nxd4 {[%emt 0:00:09]} Qxd4 {[%emt 0:00:08]} 8. Bxc6+ {[%emt 0:00:02]} Bd7 {[%emt 0:00:01]} 9. Bxd7+ {[%emt 0:00:06]} Nxd7 {[%emt 0:00:01]} 10. Nc3 {[%emt 0:00:15]} e6 {[%emt 0:00:04]} 11. Be3 {[%emt 0:00:04]} Qd6 {[%emt 0:00:09]} 12. Qxc4 {[%emt 0:00:27]} Qb4 {[%emt 0:00:40]} 13. Qb5 {[%emt 0:00:30]} a6 {[%emt 0:00:09]} 14. Qxb4 {[%emt 0:00:07]} Bxb4 {[%emt 0:00:01]} 15. a3 Bxc3+ {[%emt 0:00:02]} 16. bxc3 {[%emt 0:00:03]} Rc8 {[%emt 0:00:07]} 17. Kd2 {[%emt 0:00:10]} Ke7 {[%emt 0:00:10]} 18. f4 {[%emt 0:00:06]} Rhd8 {[%emt 0:00:06]} 19. Kc2 {[%emt 0:00:01]} Rc4 {[%emt 0:00:02]} 20. Rab1 {[%emt 0:00:04]} b5 {[%emt 0:00:02]} 21. Rhd1 {[%emt 0:00:08]} Rdc8 {[%emt 0:00:02]} 22. Rd3 {[%emt 0:00:07]} f6 {[%emt 0:00:07]} 23. Rb4 {[%emt 0:00:01]} h5 {[%emt 0:00:12]} 24. Rxc4 {[%emt 0:00:08]} Rxc4 {[%emt 0:00:02]} 25. Rd4 {[%emt 0:00:01]} Nb6 {[%emt 0:00:04]} 26. Bf2 {[%emt 0:00:19]} g6 {[%emt 0:00:05]} 27. Rd3 {[%emt 0:00:06]} Nd5 {[%emt 0:00:02]} 28. e4 {[%emt 0:00:01]} Rxe4 {[%emt 0:00:03]} 29. Bc5+ {[%emt 0:00:03]} Kd7 {[%emt 0:00:01]} 30. Kb3 {[%emt 0:00:03]} Kc6 {[%emt 0:00:01]} 31. Bf8 {[%emt 0:00:05]} Re2 {[%emt 0:00:02]} 32. h4 {[%emt 0:00:02]} Re3 {[%emt 0:00:04]} 33. Kc2 {[%emt 0:00:15]} Rxd3 {[%emt 0:00:05]} 34. Kxd3 {[%emt 0:00:01]} Nb6 {[%emt 0:00:06]} 35. Be7 {[%emt 0:00:02]} Nc4 {[%emt 0:00:06]} 36. Kd4 {[%emt 0:00:11]} a5 {[%emt 0:00:14]} 37. a4 {[%emt 0:00:03]} e5+ {[%emt 0:00:08]} 38. fxe5 {[%emt 0:00:01]} fxe5+ {[%emt 0:00:01]} 39. Ke4 {[%emt 0:00:06]} bxa4 {[%emt 0:00:02]} 40. Kd3 {[%emt 0:00:02]} Kd5 {[%emt 0:00:01]} 41. Bf8 {[%emt 0:00:04]} a3 {[%emt 0:00:02]} 42. Kc2 {[%emt 0:00:01]} a4 {[%emt 0:00:01]} 43. Be7 {[%emt 0:00:02]} e4 {[%emt 0:00:00]} 44. Bb4 {[%emt 0:00:02]} e3 {[%emt 0:00:03]} 0-1